[Event "2026 Biel Blitz Open"]
[Site "Biel, CH"]
[Date "2026.07.19"]
[Round "13"]
[White "Hirt, Markus"]
[Black "Gluckman, David"]
[Result "0-1"]
[Board "38"]
[TimeControl "180+2"]
[WhiteFideId "1302582"]
[BlackFideId "14300010"]
[WhiteElo "1880"]
[BlackElo "2240"]
[BlackTitle "IM"]
[WhiteClock "0:00:27"]
[BlackClock "0:01:18"]
[Variant "Standard"]
[EndDate "2026.07.19"]
[EndTime "16:23:30"]

1. e4 {[%clk 0:03:02]}  Nf6 {[%clk 0:03:02]} 2. e5 {[%clk 0:03:04]}  Nd5 {[%clk 0:03:04]} 3. d4 {[%clk 0:03:05]}  d6 {[%clk 0:03:05]}
4. Nf3 {[%clk 0:03:05]}  g6 {[%clk 0:03:05]} 5. Bc4 {[%clk 0:03:03]}  c6 {[%clk 0:03:06]} 6. exd6 {[%clk 0:02:58]}  Qxd6 {[%clk 0:03:07]}
7. O-O {[%clk 0:02:57]}  Bg7 {[%clk 0:03:09]} 8. Re1 {[%clk 0:02:57]}  O-O {[%clk 0:03:08]} 9. Bg5 {[%clk 0:02:44]}  Be6 {[%clk 0:03:00]}
10. Bh4 {[%clk 0:02:31]}  Re8 {[%clk 0:02:45]} 11. Bg3 {[%clk 0:02:27]}  Qd7 {[%clk 0:02:16]} 12. Ne5 {[%clk 0:02:18]}  Qc8 {[%clk 0:02:31]}
13. c3 {[%clk 0:02:08]}  Nd7 {[%clk 0:02:31]} 14. Nxd7 {[%clk 0:02:05]}  Qxd7 {[%clk 0:02:32]} 15. Nd2 {[%clk 0:02:00]}  Rad8 {[%clk 0:02:23]}
16. Qb3 {[%clk 0:01:53]}  b5 {[%clk 0:02:24]} 17. Bxd5 {[%clk 0:01:31]}  Bxd5 {[%clk 0:02:25]} 18. Qc2 {[%clk 0:01:30]}  Bh6 {[%clk 0:02:13]}
19. Ne4 {[%clk 0:01:27]}  Qf5 {[%clk 0:02:12]} 20. Qe2 {[%clk 0:01:11]}  Bg7 {[%clk 0:02:06]} 21. a4 {[%clk 0:00:56]}  b4 {[%clk 0:02:04]}
22. a5 {[%clk 0:00:52]}  bxc3 {[%clk 0:02:00]} 23. bxc3 {[%clk 0:00:53]}  e5 {[%clk 0:01:53]} 24. Nc5 {[%clk 0:00:44]}  e4 {[%clk 0:01:36]}
25. Nb7 {[%clk 0:00:31]}  Rd7 {[%clk 0:01:24]} 26. Nd6 {[%clk 0:00:32]}  Rxd6 {[%clk 0:01:24]} 27. Bxd6 {[%clk 0:00:33]}  e3 {[%clk 0:01:17]}
28. fxe3 {[%clk 0:00:27]}  Bh6 {[%clk 0:01:18]} 0-1

[Event "2026 Biel Blitz Open"]
[Site "Biel, CH"]
[Date "2026.07.19"]
[Round "13"]
[White "Hirzel, Robin"]
[Black "Gautschi, Rudolf"]
[Result "0-1"]
[Board "39"]
[TimeControl "180+2"]
[WhiteFideId "1342320"]
[BlackFideId "1318489"]
[WhiteElo "2022"]
[BlackElo "1857"]
[WhiteClock "0:00:05"]
[BlackClock "0:00:40"]
[Variant "Standard"]
[EndDate "2026.07.19"]
[EndTime "16:25:27"]

1. e4 {[%clk 0:03:03]}  g6 {[%clk 0:03:03]} 2. d4 {[%clk 0:03:03]}  Bg7 {[%clk 0:03:04]} 3. c3 {[%clk 0:03:05]}  d6 {[%clk 0:03:05]}
4. Bd3 {[%clk 0:03:06]}  Nf6 {[%clk 0:03:04]} 5. Ne2 {[%clk 0:03:07]}  Nc6 {[%clk 0:03:05]} 6. O-O {[%clk 0:03:07]}  e5 {[%clk 0:03:06]}
7. d5 {[%clk 0:03:09]}  Ne7 {[%clk 0:03:07]} 8. h3 {[%clk 0:03:06]}  O-O {[%clk 0:03:07]} 9. Be3 {[%clk 0:03:04]}  Ne8 {[%clk 0:02:57]}
10. Nd2 {[%clk 0:03:00]}  f5 {[%clk 0:02:58]} 11. f4 {[%clk 0:02:57]}  fxe4 {[%clk 0:02:48]} 12. Bxe4 {[%clk 0:02:56]}  Nf6 {[%clk 0:02:46]}
13. c4 {[%clk 0:02:52]}  Nxe4 {[%clk 0:02:44]} 14. Nxe4 {[%clk 0:02:52]}  Nf5 {[%clk 0:02:38]} 15. Bd2 {[%clk 0:02:35]}  exf4 {[%clk 0:02:33]}
16. Bxf4 {[%clk 0:02:09]}  Bxb2 {[%clk 0:02:33]} 17. Rb1 {[%clk 0:02:10]}  Bg7 {[%clk 0:02:29]} 18. Bg5 {[%clk 0:01:53]}  Qe8 {[%clk 0:02:22]}
19. N2g3 {[%clk 0:01:41]}  Qe5 {[%clk 0:01:50]} 20. Bf4 {[%clk 0:01:19]}  Qd4+ {[%clk 0:01:47]} 21. Qxd4 {[%clk 0:01:18]}  Bxd4+ {[%clk 0:01:48]}
22. Kh2 {[%clk 0:01:17]}  Nxg3 {[%clk 0:01:41]} 23. Nxg3 {[%clk 0:01:03]}  Bd7 {[%clk 0:01:39]} 24. Rxb7 {[%clk 0:01:00]}  Bb6 {[%clk 0:01:39]}
25. Bxd6 {[%clk 0:01:00]}  Rxf1 {[%clk 0:01:21]} 26. Nxf1 {[%clk 0:01:01]}  Bxh3 {[%clk 0:01:00]} 27. Kxh3 {[%clk 0:00:44]}  cxd6 {[%clk 0:01:01]}
28. Nd2 {[%clk 0:00:39]}  Re8 {[%clk 0:00:58]} 29. a4 {[%clk 0:00:32]}  Re3+ {[%clk 0:00:58]} 30. Nf3 {[%clk 0:00:24]}  Ra3 {[%clk 0:00:58]}
31. Kg4 {[%clk 0:00:10]}  Rxa4 {[%clk 0:00:57]} 32. Ng5 {[%clk 0:00:09]}  Rxc4+ {[%clk 0:00:57]} 33. Kf3 {[%clk 0:00:10]}  Rc3+ {[%clk 0:00:55]}
34. Kg4 {[%clk 0:00:09]}  h5+ {[%clk 0:00:55]} 35. Kh4 {[%clk 0:00:08]}  Be3 {[%clk 0:00:46]} 36. Ne6 {[%clk 0:00:07]}  Bf2+ {[%clk 0:00:45]}
37. Kg5 {[%clk 0:00:08]}  Rg3+ {[%clk 0:00:43]} 38. Kf6 {[%clk 0:00:07]}  Rxg2 {[%clk 0:00:40]} 39. Rg7+ {[%clk 0:00:07]}  Kh8 {[%clk 0:00:41]}
40. Rd7 {[%clk 0:00:05]}  Bh4+ {[%clk 0:00:40]} 0-1

[Event "2026 Biel Blitz Open"]
[Site "Biel, CH"]
[Date "2026.07.19"]
[Round "13"]
[White "Draude, Theo"]
[Black "El-Mais, Ibaa"]
[Result "1-0"]
[Board "40"]
[TimeControl "180+2"]
[WhiteFideId "34623809"]
[BlackFideId "1312715"]
[WhiteElo "1861"]
[BlackElo "2012"]
[WhiteClock "0:00:16"]
[BlackClock "0:00:04"]
[Variant "Standard"]
[EndDate "2026.07.19"]
[EndTime "16:26:16"]

1. e4 {[%clk 0:03:03]}  c6 {[%clk 0:03:00]} 2. d4 {[%clk 0:02:58]}  d5 {[%clk 0:03:01]} 3. exd5 {[%clk 0:03:02]}  cxd5 {[%clk 0:03:02]}
4. c4 {[%clk 0:03:04]}  Nf6 {[%clk 0:03:02]} 5. Nc3 {[%clk 0:03:05]}  Nc6 {[%clk 0:03:03]} 6. Nf3 {[%clk 0:03:06]}  e6 {[%clk 0:03:03]}
7. c5 {[%clk 0:02:49]}  b6 {[%clk 0:02:57]} 8. Bb5 {[%clk 0:02:43]}  Bd7 {[%clk 0:02:58]} 9. Bxc6 {[%clk 0:02:41]}  Bxc6 {[%clk 0:02:59]}
10. b4 {[%clk 0:02:42]}  bxc5 {[%clk 0:02:42]} 11. bxc5 {[%clk 0:02:34]}  Ne4 {[%clk 0:02:21]} 12. Nxe4 {[%clk 0:02:24]}  dxe4 {[%clk 0:02:21]}
13. Ne5 {[%clk 0:02:25]}  Bb5 {[%clk 0:01:56]} 14. Rb1 {[%clk 0:02:23]}  Qa5+ {[%clk 0:01:32]} 15. Bd2 {[%clk 0:02:21]}  Qa6 {[%clk 0:01:30]}
16. Rb4 {[%clk 0:01:55]}  Be7 {[%clk 0:00:21]} 17. a4 {[%clk 0:01:52]}  Bd3 {[%clk 0:00:20]} 18. Qb3 {[%clk 0:01:38]}  O-O {[%clk 0:00:06]}
19. f3 {[%clk 0:01:06]}  Bf6 {[%clk 0:00:04]} 20. Nd7 {[%clk 0:00:54]}  Rfd8 {[%clk 0:00:05]} 21. Nxf6+ {[%clk 0:00:46]}  gxf6 {[%clk 0:00:06]}
22. fxe4 {[%clk 0:00:45]}  Bxe4 {[%clk 0:00:07]} 23. Bh6 {[%clk 0:00:38]}  Bg6 {[%clk 0:00:05]} 24. h4 {[%clk 0:00:32]}  Rd5 {[%clk 0:00:06]}
25. g4 {[%clk 0:00:30]}  Qc6 {[%clk 0:00:05]} 26. Rf1 {[%clk 0:00:25]}  f5 {[%clk 0:00:06]} 27. h5 {[%clk 0:00:24]}  fxg4 {[%clk 0:00:06]}
28. hxg6 {[%clk 0:00:25]}  hxg6 {[%clk 0:00:07]} 29. Qg3 {[%clk 0:00:22]}  a5 {[%clk 0:00:04]} 30. Qf4 {[%clk 0:00:20]}  e5 {[%clk 0:00:00]}
31. Qxf7+ {[%clk 0:00:18]}  Kh8 {[%clk 0:00:00]} 32. Qg7# {[%clk 0:00:16]} 1-0

[Event "2026 Biel Blitz Open"]
[Site "Biel, CH"]
[Date "2026.07.19"]
[Round "13"]
[White "Ragios, Konstantinos"]
[Black "King, Alexander"]
[Result "1-0"]
[Board "41"]
[TimeControl "180+2"]
[WhiteFideId "4210484"]
[BlackFideId "1352334"]
[WhiteElo "1957"]
[BlackElo "1854"]
[WhiteClock "0:00:13"]
[BlackClock "0:00:09"]
[Variant "Standard"]
[EndDate "2026.07.19"]
[EndTime "16:26:43"]

1. e4 {[%clk 0:03:03]}  c6 {[%clk 0:03:04]} 2. Nf3 {[%clk 0:03:04]}  d5 {[%clk 0:03:05]} 3. Nc3 {[%clk 0:03:05]}  Nf6 {[%clk 0:03:06]}
4. exd5 {[%clk 0:03:05]}  cxd5 {[%clk 0:03:06]} 5. Bb5+ {[%clk 0:03:04]}  Nc6 {[%clk 0:03:07]} 6. d4 {[%clk 0:02:57]}  Bg4 {[%clk 0:03:05]}
7. h3 {[%clk 0:02:57]}  Bxf3 {[%clk 0:03:05]} 8. Qxf3 {[%clk 0:02:57]}  e6 {[%clk 0:03:06]} 9. Bg5 {[%clk 0:02:50]}  Be7 {[%clk 0:03:06]}
10. Bxc6+ {[%clk 0:02:31]}  bxc6 {[%clk 0:03:07]} 11. Qd3 {[%clk 0:02:23]}  Rb8 {[%clk 0:02:39]} 12. Rb1 {[%clk 0:02:21]}  O-O {[%clk 0:02:34]}
13. O-O {[%clk 0:02:16]}  h6 {[%clk 0:02:17]} 14. Bh4 {[%clk 0:02:16]}  Qa5 {[%clk 0:01:51]} 15. b3 {[%clk 0:01:27]}  Rfc8 {[%clk 0:01:16]}
16. Na4 {[%clk 0:01:17]}  Qb5 {[%clk 0:00:56]} 17. Rfd1 {[%clk 0:01:08]}  Qxd3 {[%clk 0:00:47]} 18. Rxd3 {[%clk 0:01:05]}  Rb4 {[%clk 0:00:33]}
19. Re1 {[%clk 0:00:52]}  c5 {[%clk 0:00:11]} 20. Bxf6 {[%clk 0:00:52]}  gxf6 {[%clk 0:00:06]} 21. c3 {[%clk 0:00:40]}  Rb7 {[%clk 0:00:04]}
22. dxc5 {[%clk 0:00:40]}  Bxc5 {[%clk 0:00:05]} 23. Nxc5 {[%clk 0:00:40]}  Rxc5 {[%clk 0:00:05]} 24. Ree3 {[%clk 0:00:40]}  Ra5 {[%clk 0:00:06]}
25. Rd2 {[%clk 0:00:39]}  Ra3 {[%clk 0:00:06]} 26. Rc2 {[%clk 0:00:38]}  Rc7 {[%clk 0:00:05]} 27. Rd3 {[%clk 0:00:33]}  Kf8 {[%clk 0:00:06]}
28. Kf1 {[%clk 0:00:34]}  Ke7 {[%clk 0:00:06]} 29. Ke2 {[%clk 0:00:35]}  f5 {[%clk 0:00:05]} 30. Kd2 {[%clk 0:00:36]}  Rc8 {[%clk 0:00:05]}
31. Kc1 {[%clk 0:00:34]}  Rg8 {[%clk 0:00:05]} 32. g3 {[%clk 0:00:34]}  Ra6 {[%clk 0:00:05]} 33. Kb2 {[%clk 0:00:35]}  Rb6 {[%clk 0:00:06]}
34. Re2 {[%clk 0:00:35]}  a5 {[%clk 0:00:06]} 35. Rxd5 {[%clk 0:00:34]}  a4 {[%clk 0:00:06]} 36. Rxf5 {[%clk 0:00:32]}  axb3 {[%clk 0:00:07]}
37. axb3 {[%clk 0:00:33]}  Rgb8 {[%clk 0:00:07]} 38. b4 {[%clk 0:00:34]}  Ra8 {[%clk 0:00:07]} 39. Rfe5 {[%clk 0:00:22]}  Rba6 {[%clk 0:00:08]}
40. Kc2 {[%clk 0:00:15]}  f6 {[%clk 0:00:08]} 41. R5e4 {[%clk 0:00:16]}  e5 {[%clk 0:00:09]} 42. f4 {[%clk 0:00:16]}  Ra2+ {[%clk 0:00:09]}
43. Kd3 {[%clk 0:00:17]}  Rd8+ {[%clk 0:00:10]} 44. Kc4 {[%clk 0:00:18]}  Rxe2 {[%clk 0:00:10]} 45. Rxe2 {[%clk 0:00:18]}  Ke6 {[%clk 0:00:11]}
46. fxe5 {[%clk 0:00:19]}  fxe5 {[%clk 0:00:11]} 47. b5 {[%clk 0:00:19]}  Rc8+ {[%clk 0:00:09]} 48. Kb4 {[%clk 0:00:20]}  Kd5 {[%clk 0:00:09]}
49. g4 {[%clk 0:00:15]}  Rc4+ {[%clk 0:00:09]} 50. Kb3 {[%clk 0:00:19]}  Rc5 {[%clk 0:00:10]} 51. Rd2+ {[%clk 0:00:19]}  Ke4 {[%clk 0:00:10]}
52. c4 {[%clk 0:00:20]}  Ke3 {[%clk 0:00:09]} 53. Rd5 {[%clk 0:00:13]} 1-0

[Event "2026 Biel Blitz Open"]
[Site "Biel, CH"]
[Date "2026.07.19"]
[Round "13"]
[White "Kutonov, Yehor"]
[Black "Jud, Marc"]
[Result "1-0"]
[Board "42"]
[TimeControl "180+2"]
[WhiteFideId "1364804"]
[BlackFideId "1309099"]
[WhiteElo "1805"]
[BlackElo "1946"]
[WhiteClock "0:00:23"]
[BlackClock "0:00:07"]
[Variant "Standard"]
[EndDate "2026.07.19"]
[EndTime "16:20:02"]

1. d4 {[%clk 0:03:02]}  d5 {[%clk 0:03:04]} 2. c4 {[%clk 0:03:03]}  e6 {[%clk 0:03:05]} 3. Nc3 {[%clk 0:03:05]}  Nf6 {[%clk 0:03:06]}
4. cxd5 {[%clk 0:03:06]}  exd5 {[%clk 0:03:08]} 5. Bg5 {[%clk 0:03:07]}  c6 {[%clk 0:03:09]} 6. e3 {[%clk 0:03:08]}  Be7 {[%clk 0:03:09]}
7. Bd3 {[%clk 0:03:10]}  h6 {[%clk 0:03:10]} 8. Bh4 {[%clk 0:03:11]}  O-O {[%clk 0:03:10]} 9. Nge2 {[%clk 0:03:12]}  Re8 {[%clk 0:03:06]}
10. f3 {[%clk 0:03:07]}  b6 {[%clk 0:03:00]} 11. Bf2 {[%clk 0:02:59]}  Bb7 {[%clk 0:03:00]} 12. h3 {[%clk 0:03:00]}  c5 {[%clk 0:02:56]}
13. O-O {[%clk 0:02:56]}  c4 {[%clk 0:02:50]} 14. Bb1 {[%clk 0:02:45]}  a6 {[%clk 0:02:50]} 15. e4 {[%clk 0:02:40]}  b5 {[%clk 0:02:40]}
16. e5 {[%clk 0:02:36]}  Nfd7 {[%clk 0:02:40]} 17. a3 {[%clk 0:02:34]}  Nf8 {[%clk 0:02:18]} 18. f4 {[%clk 0:02:32]}  f6 {[%clk 0:02:09]}
19. Kh1 {[%clk 0:02:18]}  Nbd7 {[%clk 0:02:05]} 20. Qc2 {[%clk 0:02:12]}  Bc6 {[%clk 0:01:59]} 21. g4 {[%clk 0:01:59]}  a5 {[%clk 0:01:47]}
22. Rg1 {[%clk 0:01:51]}  b4 {[%clk 0:01:48]} 23. Nd1 {[%clk 0:01:48]}  Rb8 {[%clk 0:01:39]} 24. Ne3 {[%clk 0:01:47]}  fxe5 {[%clk 0:01:35]}
25. fxe5 {[%clk 0:01:48]}  Bg5 {[%clk 0:01:22]} 26. Nf5 {[%clk 0:01:43]}  g6 {[%clk 0:01:17]} 27. Ne3 {[%clk 0:01:24]}  Nxe5 {[%clk 0:01:11]}
28. dxe5 {[%clk 0:01:19]}  d4+ {[%clk 0:01:12]} 29. Ng2 {[%clk 0:01:16]}  Rxe5 {[%clk 0:01:08]} 30. Qxc4+ {[%clk 0:01:14]}  Bd5 {[%clk 0:01:06]}
31. Qd3 {[%clk 0:01:11]}  Be4 {[%clk 0:00:56]} 32. Qxd4 {[%clk 0:01:08]}  Bxg2+ {[%clk 0:00:44]} 33. Rxg2 {[%clk 0:00:58]}  Rxe2 {[%clk 0:00:45]}
34. Ba2+ {[%clk 0:00:48]}  Kh7 {[%clk 0:00:43]} 35. Qa7+ {[%clk 0:00:44]}  Re7 {[%clk 0:00:43]} 36. Qc5 {[%clk 0:00:38]}  bxa3 {[%clk 0:00:37]}
37. bxa3 {[%clk 0:00:39]}  Rc7 {[%clk 0:00:34]} 38. Qe5 {[%clk 0:00:36]}  Qe7 {[%clk 0:00:29]} 39. Qd4 {[%clk 0:00:34]}  Bf6 {[%clk 0:00:26]}
40. Qd1 {[%clk 0:00:32]}  Bxa1 {[%clk 0:00:27]} 41. Qxa1 {[%clk 0:00:33]}  Qg7 {[%clk 0:00:26]} 42. Bd4 {[%clk 0:00:34]}  Qd7 {[%clk 0:00:25]}
43. Rf2 {[%clk 0:00:32]}  Ne6 {[%clk 0:00:20]} 44. Be5 {[%clk 0:00:29]}  Qc6+ {[%clk 0:00:16]} 45. Kh2 {[%clk 0:00:28]}  Rbb7 {[%clk 0:00:14]}
46. Bxc7 {[%clk 0:00:28]}  Rxc7 {[%clk 0:00:12]} 47. Qe1 {[%clk 0:00:27]}  Qd6+ {[%clk 0:00:15]} 48. Kg1 {[%clk 0:00:26]}  Qb6 {[%clk 0:00:12]}
49. Qxe6 {[%clk 0:00:27]}  Rc1+ {[%clk 0:00:12]} 50. Kh2 {[%clk 0:00:27]}  Qc7+ {[%clk 0:00:11]} 51. Kg2 {[%clk 0:00:24]}  Qb7+ {[%clk 0:00:07]}
52. Bd5 {[%clk 0:00:23]} 1-0

[Event "2026 Biel Blitz Open"]
[Site "Biel, CH"]
[Date "2026.07.19"]
[Round "13"]
[White "Vedant Nayudu"]
[Black "Delion, Helge"]
[Result "0-1"]
[Board "43"]
[TimeControl "180+2"]
[WhiteFideId "33369780"]
[BlackFideId "12914568"]
[WhiteElo "1732"]
[BlackElo "1911"]
[WhiteClock "0:00:13"]
[BlackClock "0:00:40"]
[Variant "Standard"]
[EndDate "2026.07.19"]
[EndTime "16:22:33"]

1. e4 {[%clk 0:03:02]}  e5 {[%clk 0:03:03]} 2. Nf3 {[%clk 0:03:04]}  Nc6 {[%clk 0:03:04]} 3. Bc4 {[%clk 0:03:04]}  Nf6 {[%clk 0:03:03]}
4. d4 {[%clk 0:03:05]}  exd4 {[%clk 0:03:04]} 5. O-O {[%clk 0:03:05]}  Bc5 {[%clk 0:03:01]} 6. e5 {[%clk 0:03:02]}  d5 {[%clk 0:03:02]}
7. exf6 {[%clk 0:02:55]}  dxc4 {[%clk 0:03:02]} 8. fxg7 {[%clk 0:02:53]}  Rg8 {[%clk 0:02:58]} 9. Qe2+ {[%clk 0:01:51]}  Be6 {[%clk 0:02:56]}
10. Ng5 {[%clk 0:01:38]}  Qd5 {[%clk 0:02:15]} 11. Nxh7 {[%clk 0:01:23]}  Be7 {[%clk 0:02:12]} 12. Bh6 {[%clk 0:00:43]}  O-O-O {[%clk 0:02:06]}
13. f4 {[%clk 0:00:27]}  Bf5 {[%clk 0:01:48]} 14. Ng5 {[%clk 0:00:19]}  d3 {[%clk 0:01:43]} 15. cxd3 {[%clk 0:00:15]}  cxd3 {[%clk 0:01:39]}
16. Qd2 {[%clk 0:00:11]}  Bf6 {[%clk 0:01:08]} 17. Nc3 {[%clk 0:00:11]}  Qc5+ {[%clk 0:00:59]} 18. Kh1 {[%clk 0:00:13]}  Bxg7 {[%clk 0:00:55]}
19. Nxf7 {[%clk 0:00:11]}  Bxh6 {[%clk 0:00:49]} 20. Nxh6 {[%clk 0:00:12]}  Rgf8 {[%clk 0:00:49]} 21. Nxf5 {[%clk 0:00:12]}  Rxf5 {[%clk 0:00:50]}
22. Rad1 {[%clk 0:00:13]}  Qd4 {[%clk 0:00:40]} 0-1

[Event "2026 Biel Blitz Open"]
[Site "Biel, CH"]
[Date "2026.07.19"]
[Round "13"]
[White "Hajduk, Tomasz"]
[Black "Alexakis, Dimitrios"]
[Result "0-1"]
[Board "44"]
[TimeControl "180+2"]
[WhiteFideId "21811415"]
[BlackFideId "4200527"]
[WhiteElo "1791"]
[BlackElo "1895"]
[WhiteClock "0:01:35"]
[BlackClock "0:01:36"]
[Variant "Standard"]
[EndDate "2026.07.19"]
[EndTime "16:16:54"]

1. e4 {[%clk 0:03:02]}  c5 {[%clk 0:03:01]} 2. Nf3 {[%clk 0:03:03]}  d6 {[%clk 0:03:03]} 3. d4 {[%clk 0:03:04]}  cxd4 {[%clk 0:03:03]}
4. Nxd4 {[%clk 0:03:05]}  Nf6 {[%clk 0:03:03]} 5. Nc3 {[%clk 0:03:06]}  g6 {[%clk 0:03:04]} 6. Be3 {[%clk 0:03:06]}  Bg7 {[%clk 0:03:05]}
7. f3 {[%clk 0:03:08]}  O-O {[%clk 0:03:05]} 8. Bc4 {[%clk 0:03:08]}  Nc6 {[%clk 0:03:05]} 9. Qd2 {[%clk 0:03:08]}  Bd7 {[%clk 0:03:05]}
10. Bb3 {[%clk 0:03:09]}  Rc8 {[%clk 0:03:03]} 11. g4 {[%clk 0:03:05]}  Nxd4 {[%clk 0:03:01]} 12. Bxd4 {[%clk 0:03:06]}  b5 {[%clk 0:03:01]}
13. h4 {[%clk 0:03:02]}  a5 {[%clk 0:02:50]} 14. Nd5 {[%clk 0:02:44]}  Nxd5 {[%clk 0:02:50]} 15. Bxd5 {[%clk 0:02:44]}  Bxd4 {[%clk 0:02:40]}
16. Qxd4 {[%clk 0:02:44]}  e6 {[%clk 0:02:38]} 17. h5 {[%clk 0:02:32]}  exd5 {[%clk 0:02:40]} 18. hxg6 {[%clk 0:02:32]}  fxg6 {[%clk 0:02:40]}
19. Qxd5+ {[%clk 0:02:27]}  Kg7 {[%clk 0:02:38]} 20. Qxd6 {[%clk 0:02:21]}  Rf6 {[%clk 0:02:17]} 21. Qd4 {[%clk 0:02:19]}  Be6 {[%clk 0:02:09]}
22. Qa7+ {[%clk 0:02:05]}  Qc7 {[%clk 0:02:03]} 23. Qe3 {[%clk 0:01:52]}  Qf4 {[%clk 0:01:43]} 24. Qa7+ {[%clk 0:01:49]}  Rf7 {[%clk 0:01:42]}
25. Qxa5 {[%clk 0:01:47]}  Rxc2 {[%clk 0:01:38]} 26. Qa3 {[%clk 0:01:34]}  Qd2+ {[%clk 0:01:36]} 27. Kf1 {[%clk 0:01:35]}  Qf2# {[%clk 0:01:36]} 0-1

[Event "2026 Biel Blitz Open"]
[Site "Biel, CH"]
[Date "2026.07.19"]
[Round "13"]
[White "Lupei, Denis"]
[Black "Bujes, Aurelien"]
[Result "1-0"]
[Board "45"]
[TimeControl "180+2"]
[WhiteFideId "34611231"]
[BlackFideId "1347179"]
[WhiteElo "1890"]
[BlackElo "1741"]
[WhiteClock "0:01:22"]
[BlackClock "0:01:00"]
[Variant "Standard"]
[EndDate "2026.07.19"]
[EndTime "16:19:39"]

1. e4 {[%clk 0:03:03]}  e5 {[%clk 0:03:01]} 2. Nf3 {[%clk 0:03:04]}  Nc6 {[%clk 0:03:02]} 3. Bc4 {[%clk 0:03:03]}  d6 {[%clk 0:03:00]}
4. c3 {[%clk 0:03:00]}  Bg4 {[%clk 0:03:00]} 5. h3 {[%clk 0:02:55]}  Bh5 {[%clk 0:03:00]} 6. d3 {[%clk 0:02:50]}  Be7 {[%clk 0:02:59]}
7. Nbd2 {[%clk 0:02:48]}  Na5 {[%clk 0:02:54]} 8. Bb5+ {[%clk 0:02:47]}  c6 {[%clk 0:02:55]} 9. Ba4 {[%clk 0:02:47]}  Nf6 {[%clk 0:02:48]}
10. Bc2 {[%clk 0:02:43]}  b6 {[%clk 0:02:33]} 11. Nf1 {[%clk 0:02:39]}  Nb7 {[%clk 0:02:27]} 12. Ng3 {[%clk 0:02:39]}  Bxf3 {[%clk 0:02:19]}
13. Qxf3 {[%clk 0:02:37]}  d5 {[%clk 0:02:18]} 14. Nf5 {[%clk 0:02:33]}  Nd6 {[%clk 0:02:02]} 15. Nxg7+ {[%clk 0:02:29]}  Kd7 {[%clk 0:01:58]}
16. Nf5 {[%clk 0:02:27]}  Nxf5 {[%clk 0:01:57]} 17. Qxf5+ {[%clk 0:02:27]}  Kd6 {[%clk 0:01:52]} 18. f4 {[%clk 0:02:26]}  dxe4 {[%clk 0:01:40]}
19. fxe5+ {[%clk 0:02:24]}  Kc7 {[%clk 0:01:41]} 20. exf6 {[%clk 0:02:23]}  Bxf6 {[%clk 0:01:42]} 21. Bf4+ {[%clk 0:02:19]}  Kb7 {[%clk 0:01:42]}
22. dxe4 {[%clk 0:02:11]}  Qe7 {[%clk 0:01:28]} 23. O-O-O {[%clk 0:02:02]}  Rhd8 {[%clk 0:01:27]} 24. e5 {[%clk 0:01:51]}  Bh8 {[%clk 0:01:20]}
25. Rxd8 {[%clk 0:01:44]}  Rxd8 {[%clk 0:01:21]} 26. Bg5 {[%clk 0:01:39]}  f6 {[%clk 0:01:03]} 27. Bxf6 {[%clk 0:01:27]}  Bxf6 {[%clk 0:01:02]}
28. Qxf6 {[%clk 0:01:27]}  Qc5 {[%clk 0:01:00]} 29. Qxd8 {[%clk 0:01:22]} 1-0

[Event "2026 Biel Blitz Open"]
[Site "Biel, CH"]
[Date "2026.07.19"]
[Round "13"]
[White "Baury, Noe"]
[Black "Materia, Mario"]
[Result "0-1"]
[Board "47"]
[TimeControl "180+2"]
[WhiteFideId "651086867"]
[BlackFideId "651082241"]
[WhiteElo "1886"]
[BlackElo "1723"]
[WhiteClock "0:00:05"]
[BlackClock "0:00:11"]
[Variant "Standard"]
[EndDate "2026.07.19"]
[EndTime "16:22:12"]

1. e4 {[%clk 0:03:03]}  e5 {[%clk 0:03:03]} 2. Nf3 {[%clk 0:03:04]}  Nc6 {[%clk 0:03:04]} 3. Bc4 {[%clk 0:03:06]}  Nf6 {[%clk 0:03:02]}
4. Ng5 {[%clk 0:03:06]}  d5 {[%clk 0:03:06]} 5. exd5 {[%clk 0:03:09]}  Na5 {[%clk 0:03:07]} 6. Bb5+ {[%clk 0:03:10]}  c6 {[%clk 0:03:09]}
7. dxc6 {[%clk 0:03:11]}  bxc6 {[%clk 0:03:10]} 8. Bd3 {[%clk 0:03:12]}  Nd5 {[%clk 0:03:10]} 9. Nf3 {[%clk 0:03:13]}  Bd6 {[%clk 0:03:09]}
10. O-O {[%clk 0:03:14]}  O-O {[%clk 0:02:58]} 11. Re1 {[%clk 0:03:15]}  Re8 {[%clk 0:02:38]} 12. Nc3 {[%clk 0:02:49]}  Nf4 {[%clk 0:02:38]}
13. Bf1 {[%clk 0:02:49]}  f5 {[%clk 0:02:33]} 14. d4 {[%clk 0:02:29]}  e4 {[%clk 0:02:24]} 15. Ne5 {[%clk 0:02:30]}  Bxe5 {[%clk 0:02:11]}
16. dxe5 {[%clk 0:02:31]}  Nd5 {[%clk 0:02:06]} 17. Qd4 {[%clk 0:02:02]}  Qb6 {[%clk 0:01:34]} 18. Qxb6 {[%clk 0:01:52]}  axb6 {[%clk 0:01:33]}
19. Nxd5 {[%clk 0:01:46]}  cxd5 {[%clk 0:01:34]} 20. Bf4 {[%clk 0:01:47]}  Ba6 {[%clk 0:01:27]} 21. Rad1 {[%clk 0:01:38]}  Bxf1 {[%clk 0:01:26]}
22. Kxf1 {[%clk 0:01:38]}  Rad8 {[%clk 0:01:24]} 23. Be3 {[%clk 0:01:23]}  Nc4 {[%clk 0:01:22]} 24. Bd4 {[%clk 0:01:20]}  Nxe5 {[%clk 0:01:21]}
25. Bxb6 {[%clk 0:01:16]}  Rd7 {[%clk 0:01:20]} 26. Bd4 {[%clk 0:01:16]}  Ng4 {[%clk 0:01:16]} 27. h3 {[%clk 0:01:15]}  Ne5 {[%clk 0:01:08]}
28. Bxe5 {[%clk 0:01:07]}  Rxe5 {[%clk 0:01:09]} 29. Rd4 {[%clk 0:01:09]}  Rc7 {[%clk 0:01:00]} 30. c3 {[%clk 0:01:09]}  Rb7 {[%clk 0:00:52]}
31. Re2 {[%clk 0:01:01]}  Kf7 {[%clk 0:00:51]} 32. g3 {[%clk 0:00:57]}  g6 {[%clk 0:00:52]} 33. a4 {[%clk 0:00:51]}  Rb3 {[%clk 0:00:42]}
34. a5 {[%clk 0:00:46]}  Rb5 {[%clk 0:00:37]} 35. Ra4 {[%clk 0:00:46]}  Re7 {[%clk 0:00:34]} 36. b4 {[%clk 0:00:39]}  Rc7 {[%clk 0:00:33]}
37. Rc2 {[%clk 0:00:38]}  d4 {[%clk 0:00:28]} 38. c4 {[%clk 0:00:34]}  d3 {[%clk 0:00:28]} 39. Rc3 {[%clk 0:00:35]}  Rb8 {[%clk 0:00:24]}
40. a6 {[%clk 0:00:31]}  d2 {[%clk 0:00:20]} 41. Ke2 {[%clk 0:00:31]}  Rd8 {[%clk 0:00:20]} 42. Kd1 {[%clk 0:00:33]}  g5 {[%clk 0:00:13]}
43. b5 {[%clk 0:00:32]}  f4 {[%clk 0:00:14]} 44. gxf4 {[%clk 0:00:28]}  gxf4 {[%clk 0:00:14]} 45. b6 {[%clk 0:00:25]}  Rcd7 {[%clk 0:00:10]}
46. b7 {[%clk 0:00:25]}  Rg8 {[%clk 0:00:11]} 47. Rg3 {[%clk 0:00:10]}  fxg3 {[%clk 0:00:10]} 48. a7 {[%clk 0:00:05]}  g2 {[%clk 0:00:09]}
49. b8=Q {[%clk 0:00:04]}  g1=Q+ {[%clk 0:00:09]} 50. Kc2 {[%clk 0:00:01]}  d1=Q+ {[%clk 0:00:08]} 51. Kc3 {[%clk 0:00:04]}  Qd2+ {[%clk 0:00:09]}
52. Kb3 {[%clk 0:00:04]}  Qb1+ {[%clk 0:00:10]} 53. Ka3 {[%clk 0:00:05]}  Qda2# {[%clk 0:00:11]} 0-1